{"text_format":"1","workbook":"xlsx","n_sheets":1,"sheets":["Лист1"],"not_rendered":{"charts":0,"images":0,"macros":1,"external_links":0,"defined_names":0,"comments":0,"pivot_tables":0},"unopened":[],"bounds":{"document_bytes":16777216,"sheet_cells":100000,"rows_first":2000,"rows_last":500,"rows_between":2000,"halvings":0,"cell_chars":16384,"cell_head_chars":4096},"cells_cut":0,"cells_raw":0,"read":"whole","date_system":"1900"}

{"sheet":"Лист1","index":0,"n_rows":62,"n_cols":119,"rows_kept":62,"cut":false,"hidden":false,"merged":[[50,11,50,127],[50,0,50,10],[32,0,32,19],[32,20,32,28],[32,29,32,37],[32,38,32,44],[32,45,32,56],[32,57,32,68],[32,69,32,78],[32,79,32,88],[55,99,55,103],[55,104,55,107],[55,108,55,113],[55,114,55,117],[55,118,55,127],[32,89,32,97],[32,98,32,106],[32,107,32,116],[32,117,32,127],[51,86,51,90],[55,71,55,76],[55,77,55,81],[55,82,55,85],[55,86,55,90],[55,91,55,94],[55,95,55,98],[55,44,55,47],[55,48,55,51],[55,52,55,55],[55,56,55,59],[55,60,55,64],[55,65,55,70],[54,118,54,127],[55,0,55,10],[55,11,55,14],[55,15,55,18],[55,19,55,22],[55,23,55,27],[55,28,55,31],[55,32,55,35],[55,36,55,39],[55,40,55,43],[54,91,54,94],[54,95,54,98],[54,99,54,103],[54,104,54,107],[54,108,54,113],[54,114,54,117],[54,60,54,64],[54,65,54,70],[54,71,54,76],[54,77,54,81],[54,82,54,85],[54,86,54,90],[54,36,54,39],[54,40,54,43],[54,44,54,47],[54,48,54,51],[54,52,54,55],[54,56,54,59],[54,0,54,10],[54,11,54,14],[54,15,54,18],[54,19,54,22],[54,23,54,27],[54,28,54,31],[54,32,54,35],[61,0,61,4],[61,5,61,23],[45,118,45,127],[46,118,46,127],[47,118,47,127],[48,118,48,127],[49,118,49,127],[45,108,45,113],[46,108,46,113],[47,108,47,113],[48,108,48,113],[49,108,49,113],[45,114,45,117],[46,114,46,117],[47,114,47,117],[48,114,48,117],[49,114,49,117],[45,104,45,107],[46,104,46,107],[47,104,47,107],[48,104,48,107],[49,104,49,107],[45,99,45,103],[46,99,46,103],[47,95,47,98],[47,99,47,103],[48,95,48,98],[48,99,48,103],[49,99,49,103],[45,91,45,94],[46,91,46,94],[47,91,47,94],[48,91,48,94],[49,91,49,94],[45,95,45,98],[49,95,49,98],[46,95,46,98],[45,82,45,85],[46,82,46,85],[47,82,47,85],[48,82,48,85],[49,82,49,85],[45,86,45,90],[46,86,46,90],[47,86,47,90],[48,86,48,90],[49,86,49,90],[45,71,45,76],[46,71,46,76],[47,71,47,76],[48,71,48,76],[49,71,49,76],[45,77,45,81],[46,77,46,81],[47,77,47,81],[48,77,48,81],[49,77,49,81],[49,56,49,59],[49,60,49,64],[45,65,45,70],[46,65,46,70],[47,65,47,70],[48,65,48,70],[49,65,49,70],[47,56,47,59],[47,60,47,64],[48,56,48,59],[48,44,48,47],[48,48,48,51],[48,52,48,55],[49,32,49,35],[49,36,49,39],[49,40,49,43],[49,44,49,47],[49,48,49,51],[49,52,49,55],[48,60,48,64],[47,32,47,35],[47,36,47,39],[47,40,47,43],[47,44,47,47],[47,48,47,51],[47,52,47,55],[48,32,48,35],[48,36,48,39],[48,40,48,43],[45,56,45,59],[45,60,45,64],[46,32,46,35],[46,36,46,39],[46,40,46,43],[46,44,46,47],[46,48,46,51],[46,52,46,55],[46,56,46,59],[46,60,46,64],[45,32,45,35],[45,36,45,39],[45,40,45,43],[45,44,45,47],[45,48,45,51],[45,52,45,55],[49,15,49,18],[49,19,49,22],[49,23,49,27],[45,28,45,31],[46,28,46,31],[47,28,47,31],[48,28,48,31],[49,28,49,31],[47,15,47,18],[47,19,47,22],[47,23,47,27],[48,15,48,18],[48,19,48,22],[48,23,48,27],[45,15,45,18],[45,19,45,22],[45,23,45,27],[46,15,46,18],[46,19,46,22],[46,23,46,27],[45,0,45,10],[46,0,46,10],[47,0,47,10],[48,0,48,10],[49,0,49,10],[45,11,45,14],[46,11,46,14],[47,11,47,14],[48,11,48,14],[49,11,49,14],[40,11,40,127],[40,0,44,10],[41,11,44,14],[41,15,44,18],[41,19,44,22],[41,23,44,27],[31,69,31,78],[31,79,31,88],[31,89,31,97],[31,98,31,106],[31,107,31,116],[31,117,31,127],[30,79,30,88],[30,89,30,97],[30,107,30,116],[30,117,30,127],[31,0,31,19],[31,20,31,28],[31,29,31,37],[31,38,31,44],[31,45,31,56],[31,57,31,68],[29,98,29,106],[29,107,29,116],[29,117,29,127],[30,0,30,19],[30,20,30,28],[30,29,30,37],[30,38,30,44],[30,45,30,56],[30,57,30,68],[30,69,30,78],[28,79,28,88],[28,89,28,97],[28,107,28,116],[28,117,28,127],[29,38,29,44],[29,45,29,56],[29,57,29,68],[29,69,29,78],[29,79,29,88],[29,89,29,97],[41,32,44,35],[41,36,44,39],[27,117,27,127],[28,0,28,19],[28,20,28,28],[28,29,28,37],[28,38,28,44],[28,45,28,56],[28,57,28,68],[28,69,28,78],[41,91,44,94],[41,95,44,98],[27,0,27,19],[27,20,27,28],[41,99,44,103],[41,40,44,43],[41,44,44,47],[41,48,44,51],[41,52,44,55],[41,28,44,31],[38,105,38,127],[41,118,44,127],[41,114,44,117],[41,108,44,113],[41,104,44,107],[41,56,44,59],[41,60,44,64],[41,65,44,70],[41,71,44,76],[41,77,44,81],[33,98,33,106],[33,107,33,116],[33,117,33,127],[34,98,34,106],[34,107,34,116],[34,117,34,127],[27,98,27,106],[27,107,27,116],[25,117,25,127],[26,98,26,106],[26,107,26,116],[26,117,26,127],[25,98,25,106],[27,89,27,97],[28,98,28,106],[30,98,30,106],[51,0,51,10],[51,11,51,14],[51,15,51,18],[51,19,51,22],[51,23,51,27],[51,28,51,31],[51,32,51,35],[51,36,51,39],[51,40,51,43],[51,44,51,47],[51,48,51,51],[26,89,26,97],[33,89,33,97],[34,89,34,97],[41,82,44,85],[41,86,44,90],[51,52,51,55],[51,56,51,59],[51,60,51,64],[51,65,51,70],[51,71,51,76],[25,79,25,88],[26,79,26,88],[33,79,33,88],[34,79,34,88],[27,79,27,88],[26,57,26,68],[33,57,33,68],[34,57,34,68],[27,57,27,68],[51,77,51,81],[25,69,25,78],[26,69,26,78],[33,69,33,78],[34,69,34,78],[27,69,27,78],[34,38,34,44],[27,38,27,44],[51,91,51,94],[25,45,25,56],[26,45,26,56],[33,45,33,56],[34,45,34,56],[27,45,27,56],[51,82,51,85],[25,57,25,68],[27,29,27,37],[29,0,29,19],[25,20,25,28],[26,20,26,28],[33,20,33,28],[25,38,25,44],[26,38,26,44],[33,38,33,44],[51,95,51,98],[18,0,24,19],[25,0,25,19],[26,0,26,19],[33,0,33,19],[25,29,25,37],[26,29,26,37],[33,29,33,37],[29,29,29,37],[34,0,34,37],[51,99,51,103],[51,104,51,107],[20,38,24,44],[18,38,19,68],[20,29,24,37],[20,20,24,28],[18,20,19,37],[18,69,19,127],[25,107,25,116],[29,20,29,28],[51,108,51,113],[21,57,24,68],[21,45,24,56],[20,45,20,68],[51,114,51,117],[51,118,51,127],[21,89,22,106],[20,89,20,127],[37,0,37,127],[25,89,25,97],[52,0,52,10],[52,11,52,14],[52,15,52,18],[52,19,52,22],[52,23,52,27],[20,69,20,88],[21,79,24,88],[21,69,24,78],[52,28,52,31],[52,32,52,35],[52,36,52,39],[52,40,52,43],[52,44,52,47],[52,48,52,51],[16,105,16,127],[23,117,24,127],[23,107,24,116],[23,89,24,97],[23,98,24,106],[21,107,22,127],[9,13,9,19],[9,20,9,112],[10,20,11,112],[12,32,12,99],[13,32,13,99],[52,52,52,55],[52,56,52,59],[52,60,52,64],[52,65,52,70],[52,71,52,76],[0,101,5,127],[7,109,7,127],[52,77,52,81],[52,82,52,85],[52,86,52,90],[52,91,52,94],[52,95,52,98],[52,99,52,103],[52,104,52,107],[52,108,52,113],[15,32,15,99],[52,114,52,117],[52,118,52,127],[53,0,53,10],[53,11,53,14],[53,15,53,18],[53,19,53,22],[53,23,53,27],[53,28,53,31],[53,32,53,35],[53,36,53,39],[53,40,53,43],[53,44,53,47],[53,48,53,51],[53,52,53,55],[53,56,53,59],[53,104,53,107],[53,108,53,113],[53,114,53,117],[53,60,53,64],[53,65,53,70],[53,71,53,76],[53,77,53,81],[53,82,53,85],[53,86,53,90],[53,118,53,127],[57,0,57,70],[58,0,59,70],[57,77,57,92],[58,77,58,92],[57,104,57,127],[58,104,58,127],[53,91,53,94],[53,95,53,98],[53,99,53,103]]}
[null,null,null,null,null,null,null,null,null,null,null,null,null,null,null,null,null,null,null,null,null,null,null,null,null,null,null,null,null,null,null,null,null,null,null,null,null,null,null,null,null,null,null,null,null,null,null,null,null,null,null,null,null,null,null,null,null,null,null,null,null,null,null,null,null,null,null,null,null,null,null,null,null,null,null,null,null,null,null,null,null,null,null,null,null,null,null,null,null,null,null,null,null,null,null,null,null,null,null,null,null,"Приложение\nк постановлению \nМинистерства сельского \nхозяйства и продовольствия \nРеспублики Беларусь \n09.02.2022 № 8"]
[]
[]
[]
[]
[]
[]
[null,null,null,null,null,null,null,null,null,null,null,null,null,null,null,null,null,null,null,null,null,null,null,null,null,null,null,null,null,null,null,null,null,null,null,null,null,null,null,null,null,null,null,null,null,null,null,null,null,null,null,null,null,null,null,null,null,null,null,null,null,null,null,null,null,null,null,null,null,null,null,null,null,null,null,null,null,null,null,null,null,null,null,null,null,null,null,null,null,null,null,null,null,null,null,null,null,null,null,null,null,null,null,null,null,null,null,null,null,"Форма"]
[]
[null,null,null,null,null,null,null,null,null,null,null,null,null,"Отчет"]
[null,null,null,null,null,null,null,null,null,null,null,null,null,null,null,null,null,null,null,null,"(арендатор, пользователь рыболовных угодий, юридическое лицо, заключившие договор на промысловый лов рыбы по квотам в рыболовных угодьях фонда запаса)"]
[]
[]
[null,null,null,null,null,null,null,null,null,null,null,null,null,null,null,null,null,null,null,null,null,null,null,null,null,null,null,null,null,null,null,null,"(область, район)"]
[]
[null,null,null,null,null,null,null,null,null,null,null,null,null,null,null,null,null,null,null,null,null,null,null,null,null,null,null,null,null,null,null,null,"Общий объем добычи (вылова) рыбы"]
[null,null,null,null,null,null,null,null,null,null,null,null,null,null,null,null,null,null,null,null,null,null,null,null,null,null,null,null,null,null,null,null,null,null,null,null,null,null,null,null,null,null,null,null,null,null,null,null,null,null,null,null,null,null,null,null,null,null,null,null,null,null,null,null,null,null,null,null,null,null,null,null,null,null,null,null,null,null,null,null,null,null,null,null,null,null,null,null,null,null,null,null,null,null,null,null,null,null,null,null,null,null,null,null,null,"Таблица 1"]
[]
["Наименование рыболовного угодья (водоем, водоток)",null,null,null,null,null,null,null,null,null,null,null,null,null,null,null,null,null,null,null,"Площадь (протяженность)",null,null,null,null,null,null,null,null,null,null,null,null,null,null,null,null,null,"Квота на вылов рыбы, кг",null,null,null,null,null,null,null,null,null,null,null,null,null,null,null,null,null,null,null,null,null,null,null,null,null,null,null,null,null,null,"Объем добытой (выловленной) рыбы из рыболовных угодий, кг"]
[]
[null,null,null,null,null,null,null,null,null,null,null,null,null,null,null,null,null,null,null,null,"га",null,null,null,null,null,null,null,null,"км",null,null,null,null,null,null,null,null,"всего",null,null,null,null,null,null,"в том числе путем",null,null,null,null,null,null,null,null,null,null,null,null,null,null,null,null,null,null,null,null,null,null,null,"всего",null,null,null,null,null,null,null,null,null,null,null,null,null,null,null,null,null,null,null,"в том числе путем"]
[null,null,null,null,null,null,null,null,null,null,null,null,null,null,null,null,null,null,null,null,null,null,null,null,null,null,null,null,null,null,null,null,null,null,null,null,null,null,null,null,null,null,null,null,null,"ведения промыслового лова",null,null,null,null,null,null,null,null,null,null,null,"организации платного любительского рыболовства",null,null,null,null,null,null,null,null,null,null,null,"с начала года",null,null,null,null,null,null,null,null,null,"за отчетный квартал",null,null,null,null,null,null,null,null,null,"ведения промыслового лова",null,null,null,null,null,null,null,null,null,null,null,null,null,null,null,null,null,"организации платного любительского рыболовства"]
[]
[null,null,null,null,null,null,null,null,null,null,null,null,null,null,null,null,null,null,null,null,null,null,null,null,null,null,null,null,null,null,null,null,null,null,null,null,null,null,null,null,null,null,null,null,null,null,null,null,null,null,null,null,null,null,null,null,null,null,null,null,null,null,null,null,null,null,null,null,null,null,null,null,null,null,null,null,null,null,null,null,null,null,null,null,null,null,null,null,null,"с начала года",null,null,null,null,null,null,null,null,"за отчетный квартал",null,null,null,null,null,null,null,null,"с начала года",null,null,null,null,null,null,null,null,null,"за отчетный квартал"]
[]
[null,null,null,null,null,null,null,null,null,null,null,null,null,null,null,null,null,null,null,null,null,null,null,null,null,null,null,null,null,null,null,null,null,null,null,null,null,null,{"$f":"AT26+BF26","v":0},null,null,null,null,null,null,null,null,null,null,null,null,null,null,null,null,null,null,null,null,null,null,null,null,null,null,null,null,null,null,{"$f":"CL26+DD26","v":0},null,null,null,null,null,null,null,null,null,{"$f":"CU26+DN26","v":0}]
[null,null,null,null,null,null,null,null,null,null,null,null,null,null,null,null,null,null,null,null,null,null,null,null,null,null,null,null,null,null,null,null,null,null,null,null,null,null,{"$f":"AT27+BF27","v":0},null,null,null,null,null,null,null,null,null,null,null,null,null,null,null,null,null,null,null,null,null,null,null,null,null,null,null,null,null,null,{"$f":"CL27+DD27","v":0},null,null,null,null,null,null,null,null,null,{"$f":"CU27+DN27","v":0}]
[null,null,null,null,null,null,null,null,null,null,null,null,null,null,null,null,null,null,null,null,null,null,null,null,null,null,null,null,null,null,null,null,null,null,null,null,null,null,{"$f":"AT28+BF28","v":0},null,null,null,null,null,null,null,null,null,null,null,null,null,null,null,null,null,null,null,null,null,null,null,null,null,null,null,null,null,null,{"$f":"CL28+DD28","v":0},null,null,null,null,null,null,null,null,null,{"$f":"CU28+DN28","v":0}]
[null,null,null,null,null,null,null,null,null,null,null,null,null,null,null,null,null,null,null,null,null,null,null,null,null,null,null,null,null,null,null,null,null,null,null,null,null,null,0,null,null,null,null,null,null,null,null,null,null,null,null,null,null,null,null,null,null,null,null,null,null,null,null,null,null,null,null,null,null,0,null,null,null,null,null,null,null,null,null,0]
[null,null,null,null,null,null,null,null,null,null,null,null,null,null,null,null,null,null,null,null,null,null,null,null,null,null,null,null,null,null,null,null,null,null,null,null,null,null,0,null,null,null,null,null,null,null,null,null,null,null,null,null,null,null,null,null,null,null,null,null,null,null,null,null,null,null,null,null,null,0,null,null,null,null,null,null,null,null,null,0]
[null,null,null,null,null,null,null,null,null,null,null,null,null,null,null,null,null,null,null,null,null,null,null,null,null,null,null,null,null,null,null,null,null,null,null,null,null,null,0,null,null,null,null,null,null,null,null,null,null,null,null,null,null,null,null,null,null,null,null,null,null,null,null,null,null,null,null,null,null,0,null,null,null,null,null,null,null,null,null,0]
[null,null,null,null,null,null,null,null,null,null,null,null,null,null,null,null,null,null,null,null,null,null,null,null,null,null,null,null,null,null,null,null,null,null,null,null,null,null,0,null,null,null,null,null,null,null,null,null,null,null,null,null,null,null,null,null,null,null,null,null,null,null,null,null,null,null,null,null,null,0,null,null,null,null,null,null,null,null,null,0]
[null,null,null,null,null,null,null,null,null,null,null,null,null,null,null,null,null,null,null,null,null,null,null,null,null,null,null,null,null,null,null,null,null,null,null,null,null,null,0,null,null,null,null,null,null,null,null,null,null,null,null,null,null,null,null,null,null,null,null,null,null,null,null,null,null,null,null,null,null,0,null,null,null,null,null,null,null,null,null,0]
[null,null,null,null,null,null,null,null,null,null,null,null,null,null,null,null,null,null,null,null,null,null,null,null,null,null,null,null,null,null,null,null,null,null,null,null,null,null,{"$f":"AT34+BF34","v":0},null,null,null,null,null,null,null,null,null,null,null,null,null,null,null,null,null,null,null,null,null,null,null,null,null,null,null,null,null,null,{"$f":"CL34+DD34","v":0},null,null,null,null,null,null,null,null,null,{"$f":"CU34+DN34","v":0}]
["Всего выловлено рыбы из рыболовных угодий",null,null,null,null,null,null,null,null,null,null,null,null,null,null,null,null,null,null,null,null,null,null,null,null,null,null,null,null,null,null,null,null,null,null,null,null,null,null,null,null,null,null,null,null,null,null,null,null,null,null,null,null,null,null,null,null,null,null,null,null,null,null,null,null,null,null,null,null,{"$f":"SUM(BR26:CA34)","v":0},null,null,null,null,null,null,null,null,null,{"$f":"SUM(CB26:CK34)","v":0},null,null,null,null,null,null,null,null,null,{"$f":"SUM(CL26:CT34)","v":0},null,null,null,null,null,null,null,null,{"$f":"SUM(CU26:DC34)","v":0},null,null,null,null,null,null,null,null,{"$f":"SUM(DD26:DM34)","v":0},null,null,null,null,null,null,null,null,null,{"$f":"SUM(DN26:DX34)","v":0}]
[]
[]
["Объем вылова рыбы по видовому составу"]
[null,null,null,null,null,null,null,null,null,null,null,null,null,null,null,null,null,null,null,null,null,null,null,null,null,null,null,null,null,null,null,null,null,null,null,null,null,null,null,null,null,null,null,null,null,null,null,null,null,null,null,null,null,null,null,null,null,null,null,null,null,null,null,null,null,null,null,null,null,null,null,null,null,null,null,null,null,null,null,null,null,null,null,null,null,null,null,null,null,null,null,null,null,null,null,null,null,null,null,null,null,null,null,null,null,"Таблица 2"]
[]
["Наименование рыболовного угодья (водоем, водоток)",null,null,null,null,null,null,null,null,null,null,"Промысловый вылов рыбы, кг"]
[null,null,null,null,null,null,null,null,null,null,null,"лещ",null,null,null,"су-\nдак",null,null,null,"щу-\nка",null,null,null,"окунь",null,null,null,null,"плот-\nва",null,null,null,"гус-\nтера",null,null,null,"карп",null,null,null,"линь",null,null,null,"ерш",null,null,null,"же-\nрех",null,null,null,"язь",null,null,null,"сом",null,null,null,"уклея",null,null,null,null,"красно-\nперка",null,null,null,null,null,"толсто-\nлобик",null,null,null,null,null,"белый амур",null,null,null,null,"на-\nлим",null,null,null,"угорь",null,null,null,null,"сиг",null,null,null,"елец",null,null,null,"го-\nлавль",null,null,null,null,"си-\nнец",null,null,null,"бело-\nглазка",null,null,null,null,null,null,null,null,null,"вылов рыбы, всего"]
[]
[]
[]
[null,null,null,null,null,null,null,null,null,null,null,null,null,null,null,null,null,null,null,null,null,null,null,null,null,null,null,null,null,null,null,null,null,null,null,null,null,null,null,null,null,null,null,null,null,null,null,null,null,null,null,null,null,null,null,null,null,null,null,null,null,null,null,null,null,null,null,null,null,null,null,null,null,null,null,null,null,null,null,null,null,null,null,null,null,null,null,null,null,null,null,null,null,null,null,null,null,null,null,null,null,null,null,null,null,null,null,null,null,null,null,null,null,null,null,null,null,null,{"$f":"SUM(L46:DN46)","v":0}]
[null,null,null,null,null,null,null,null,null,null,null,null,null,null,null,null,null,null,null,null,null,null,null,null,null,null,null,null,null,null,null,null,null,null,null,null,null,null,null,null,null,null,null,null,null,null,null,null,null,null,null,null,null,null,null,null,null,null,null,null,null,null,null,null,null,null,null,null,null,null,null,null,null,null,null,null,null,null,null,null,null,null,null,null,null,null,null,null,null,null,null,null,null,null,null,null,null,null,null,null,null,null,null,null,null,null,null,null,null,null,null,null,null,null,null,null,null,null,{"$f":"SUM(L47:DN47)","v":0}]
[null,null,null,null,null,null,null,null,null,null,null,null,null,null,null,null,null,null,null,null,null,null,null,null,null,null,null,null,null,null,null,null,null,null,null,null,null,null,null,null,null,null,null,null,null,null,null,null,null,null,null,null,null,null,null,null,null,null,null,null,null,null,null,null,null,null,null,null,null,null,null,null,null,null,null,null,null,null,null,null,null,null,null,null,null,null,null,null,null,null,null,null,null,null,null,null,null,null,null,null,null,null,null,null,null,null,null,null,null,null,null,null,null,null,null,null,null,null,{"$f":"SUM(L48:DN48)","v":0}]
[null,null,null,null,null,null,null,null,null,null,null,null,null,null,null,null,null,null,null,null,null,null,null,null,null,null,null,null,null,null,null,null,null,null,null,null,null,null,null,null,null,null,null,null,null,null,null,null,null,null,null,null,null,null,null,null,null,null,null,null,null,null,null,null,null,null,null,null,null,null,null,null,null,null,null,null,null,null,null,null,null,null,null,null,null,null,null,null,null,null,null,null,null,null,null,null,null,null,null,null,null,null,null,null,null,null,null,null,null,null,null,null,null,null,null,null,null,null,{"$f":"SUM(L49:DN49)","v":0}]
["ИТОГО",null,null,null,null,null,null,null,null,null,null,{"$f":"SUM(L46:O49)","v":0},null,null,null,{"$f":"SUM(P46:S49)","v":0},null,null,null,{"$f":"SUM(T46:W49)","v":0},null,null,null,{"$f":"SUM(X46:AB49)","v":0},null,null,null,null,{"$f":"SUM(AC46:AF49)","v":0},null,null,null,{"$f":"SUM(AG46:AJ49)","v":0},null,null,null,{"$f":"SUM(AK46:AN49)","v":0},null,null,null,{"$f":"SUM(AO46:AR49)","v":0},null,null,null,{"$f":"SUM(AS46:AV49)","v":0},null,null,null,{"$f":"SUM(AW46:AZ49)","v":0},null,null,null,{"$f":"SUM(BA46:BD49)","v":0},null,null,null,{"$f":"SUM(BE46:BH49)","v":0},null,null,null,{"$f":"SUM(BI46:BM49)","v":0},null,null,null,null,{"$f":"SUM(BN46:BS49)","v":0},null,null,null,null,null,{"$f":"SUM(BT46:BY49)","v":0},null,null,null,null,null,{"$f":"SUM(BZ46:CD49)","v":0},null,null,null,null,{"$f":"SUM(CE46:CH49)","v":0},null,null,null,{"$f":"SUM(CI46:CM49)","v":0},null,null,null,null,{"$f":"SUM(CN46:CQ49)","v":0},null,null,null,{"$f":"SUM(CR46:CU49)","v":0},null,null,null,{"$f":"SUM(CV46:CZ49)","v":0},null,null,null,null,{"$f":"SUM(DA46:DD49)","v":0},null,null,null,{"$f":"SUM(DE46:DJ49)","v":0},null,null,null,null,null,{"$f":"SUM(DK46:DN49)","v":0},null,null,null,{"$f":"SUM(DO46:DX49)","v":0}]
[null,null,null,null,null,null,null,null,null,null,null,"Платное любительское рыболовство, кг"]
[null,null,null,null,null,null,null,null,null,null,null,null,null,null,null,null,null,null,null,null,null,null,null,null,null,null,null,null,null,null,null,null,null,null,null,null,null,null,null,null,null,null,null,null,null,null,null,null,null,null,null,null,null,null,null,null,null,null,null,null,null,null,null,null,null,null,null,null,null,null,null,null,null,null,null,null,null,null,null,null,null,null,null,null,null,null,null,null,null,null,null,null,null,null,null,null,null,null,null,null,null,null,null,null,null,null,null,null,null,null,null,null,null,null,null,null,null,null,{"$f":"SUM(L52:DN52)","v":0}]
[null,null,null,null,null,null,null,null,null,null,null,null,null,null,null,null,null,null,null,null,null,null,null,null,null,null,null,null,null,null,null,null,null,null,null,null,null,null,null,null,null,null,null,null,null,null,null,null,null,null,null,null,null,null,null,null,null,null,null,null,null,null,null,null,null,null,null,null,null,null,null,null,null,null,null,null,null,null,null,null,null,null,null,null,null,null,null,null,null,null,null,null,null,null,null,null,null,null,null,null,null,null,null,null,null,null,null,null,null,null,null,null,null,null,null,null,null,null,{"$f":"SUM(L53:DN53)","v":0}]
[null,null,null,null,null,null,null,null,null,null,null,null,null,null,null,null,null,null,null,null,null,null,null,null,null,null,null,null,null,null,null,null,null,null,null,null,null,null,null,null,null,null,null,null,null,null,null,null,null,null,null,null,null,null,null,null,null,null,null,null,null,null,null,null,null,null,null,null,null,null,null,null,null,null,null,null,null,null,null,null,null,null,null,null,null,null,null,null,null,null,null,null,null,null,null,null,null,null,null,null,null,null,null,null,null,null,null,null,null,null,null,null,null,null,null,null,null,null,{"$f":"SUM(L54:DN54)","v":0}]
[null,null,null,null,null,null,null,null,null,null,null,null,null,null,null,null,null,null,null,null,null,null,null,null,null,null,null,null,null,null,null,null,null,null,null,null,null,null,null,null,null,null,null,null,null,null,null,null,null,null,null,null,null,null,null,null,null,null,null,null,null,null,null,null,null,null,null,null,null,null,null,null,null,null,null,null,null,null,null,null,null,null,null,null,null,null,null,null,null,null,null,null,null,null,null,null,null,null,null,null,null,null,null,null,null,null,null,null,null,null,null,null,null,null,null,null,null,null,{"$f":"SUM(L55:DN55)","v":0}]
["ИТОГО",null,null,null,null,null,null,null,null,null,null,{"$f":"SUM(L52:O55)","v":0},null,null,null,{"$f":"SUM(P52:S55)","v":0},null,null,null,{"$f":"SUM(T52:W55)","v":0},null,null,null,{"$f":"SUM(X52:AB55)","v":0},null,null,null,null,{"$f":"SUM(AC52:AF55)","v":0},null,null,null,{"$f":"SUM(AG52:AJ55)","v":0},null,null,null,{"$f":"SUM(AK52:AN55)","v":0},null,null,null,{"$f":"SUM(AO52:AR55)","v":0},null,null,null,{"$f":"SUM(AS52:AV55)","v":0},null,null,null,{"$f":"SUM(AW52:AZ55)","v":0},null,null,null,{"$f":"SUM(BA52:BD55)","v":0},null,null,null,{"$f":"SUM(BE52:BH55)","v":0},null,null,null,{"$f":"SUM(BI52:BM55)","v":0},null,null,null,null,{"$f":"SUM(BN52:BS55)","v":0},null,null,null,null,null,{"$f":"SUM(BT52:BY55)","v":0},null,null,null,null,null,{"$f":"SUM(BZ52:CD55)","v":0},null,null,null,null,{"$f":"SUM(CE52:CH55)","v":0},null,null,null,{"$f":"SUM(CI52:CM55)","v":0},null,null,null,null,{"$f":"SUM(CN52:CQ55)","v":0},null,null,null,{"$f":"SUM(CR52:CU55)","v":0},null,null,null,{"$f":"SUM(CV52:CZ55)","v":0},null,null,null,null,{"$f":"SUM(DA52:DD55)","v":0},null,null,null,{"$f":"SUM(DE52:DJ55)","v":0},null,null,null,null,null,{"$f":"SUM(DK52:DN55)","v":0},null,null,null,{"$f":"SUM(DO52:DX55)","v":0}]
[]
[]
["(арендатор, пользователь рыболовных угодий, юридическое лицо, заключившие договор на промысловый лов рыбы по квотам в рыболовных угодьях фонда запаса)",null,null,null,null,null,null,null,null,null,null,null,null,null,null,null,null,null,null,null,null,null,null,null,null,null,null,null,null,null,null,null,null,null,null,null,null,null,null,null,null,null,null,null,null,null,null,null,null,null,null,null,null,null,null,null,null,null,null,null,null,null,null,null,null,null,null,null,null,null,null,null,null,null,null,null,null,"(подпись)",null,null,null,null,null,null,null,null,null,null,null,null,null,null,null,null,null,null,null,null,null,null,null,null,null,null,"(инициалы, фамилия)"]
[]
[]
["Дата"]